[Event "Titled Tuesday Blitz October 31 Early 2023"]
[White "Pavlidou, Ekaterini"]
[Black "Ghosh, Chanchal Kumer"]
[WhiteFideId "4213262"]
[BlackFideId "10201858"]
[WhiteElo "2320"]
[BlackElo "1975"]
[Result "1-0"]
[Round "9"]
[TimeControl "180+1"]
[Date "2023.10.31"]
[WhiteClock "0:00:12"]
[BlackClock "0:00:00"]
[Board "130"]

1. d4 {[%clk 0:03:00]}  d5 {[%clk 0:02:59]} 2. c4 {[%clk 0:03:01]}  e6 {[%clk 0:02:59]} 3. Nf3 {[%clk 0:02:58]}  Nf6 {[%clk 0:02:58]} 4. cxd5 {[%clk 0:02:57]}  exd5 {[%clk 0:02:58]} 5. Bg5 {[%clk 0:02:56]}  Be7 {[%clk 0:02:57]} 6. e3 {[%clk 0:02:55]}  O-O {[%clk 0:02:56]} 7. Bd3 {[%clk 0:02:54]}  b6 {[%clk 0:02:52]} 8. Nc3 {[%clk 0:02:48]}  a6 {[%clk 0:02:50]} 9. O-O {[%clk 0:02:47]}  Bg4 {[%clk 0:02:31]} 10. h3 {[%clk 0:02:42]}  Bh5 {[%clk 0:02:30]} 11. Be2 {[%clk 0:02:16]}  Nbd7 {[%clk 0:02:26]} 12. Ne5 {[%clk 0:02:11]}  Bxe2 {[%clk 0:02:23]} 13. Nxe2 {[%clk 0:02:07]}  h6 {[%clk 0:02:03]} 14. Nc6 {[%clk 0:02:03]}  Qe8 {[%clk 0:02:03]} 15. Bf4 {[%clk 0:01:59]}  Rc8 {[%clk 0:01:36]} 16. Rc1 {[%clk 0:01:57]}  Bd8 {[%clk 0:01:25]} 17. Qa4 {[%clk 0:01:56]}  a5 {[%clk 0:01:22]} 18. Rc2 {[%clk 0:01:48]}  Nb8 {[%clk 0:01:13]} 19. Rfc1 {[%clk 0:01:48]}  Nxc6 {[%clk 0:01:12]} 20. Rxc6 {[%clk 0:01:47]}  Ne4 {[%clk 0:01:02]} 21. b3 {[%clk 0:01:30]}  Qe7 {[%clk 0:00:32]} 22. Rxb6 {[%clk 0:01:15]}  Qh4 {[%clk 0:00:23]} 23. Bg3 {[%clk 0:01:02]}  Nxg3 {[%clk 0:00:22]} 24. Nxg3 {[%clk 0:01:00]}  Bg5 {[%clk 0:00:20]} 25. Rbc6 {[%clk 0:00:32]}  Bxe3 {[%clk 0:00:18]} 26. R6c3 {[%clk 0:00:21]}  Bxd4 {[%clk 0:00:16]} 27. Rd3 {[%clk 0:00:19]}  Be5 {[%clk 0:00:15]} 28. Qxh4 {[%clk 0:00:17]}  c6 {[%clk 0:00:14]} 29. Nf5 {[%clk 0:00:17]}  Bf6 {[%clk 0:00:13]} 30. Qg4 {[%clk 0:00:17]}  Kh8 {[%clk 0:00:13]} 31. Rg3 {[%clk 0:00:16]}  Rg8 {[%clk 0:00:12]} 32. Nxh6 {[%clk 0:00:15]}  gxh6 {[%clk 0:00:12]} 33. Qf5 {[%clk 0:00:16]}  Bg7 {[%clk 0:00:11]} 34. Rxg7 {[%clk 0:00:14]}  Kxg7 {[%clk 0:00:11]} 35. Rc3 {[%clk 0:00:14]}  Rcf8 {[%clk 0:00:09]} 36. Rg3+ {[%clk 0:00:14]}  Kh8 {[%clk 0:00:09]} 37. Qf6+ {[%clk 0:00:14]}  Kh7 {[%clk 0:00:09]} 38. Rxg8 {[%clk 0:00:14]}  Kxg8 {[%clk 0:00:09]} 39. Qxc6 {[%clk 0:00:14]}  Re8 {[%clk 0:00:10]} 40. Qxd5 {[%clk 0:00:13]}  Kg7 {[%clk 0:00:11]} 41. Qxa5 {[%clk 0:00:12]}  Re6 {[%clk 0:00:11]} 42. Qc3+ {[%clk 0:00:13]}  Kh7 {[%clk 0:00:11]} 43. a4 {[%clk 0:00:13]}  Rd6 {[%clk 0:00:10]} 44. a5 {[%clk 0:00:13]}  Rd1+ {[%clk 0:00:10]} 45. Kh2 {[%clk 0:00:13]}  Rd6 {[%clk 0:00:10]} 46. b4 {[%clk 0:00:13]}  Rg6 {[%clk 0:00:10]} 47. b5 {[%clk 0:00:13]}  h5 {[%clk 0:00:11]} 48. b6 {[%clk 0:00:13]}  Rg5 {[%clk 0:00:11]} 49. b7 {[%clk 0:00:13]}  Rg8 {[%clk 0:00:11]} 50. a6 {[%clk 0:00:12]}  Kg6 {[%clk 0:00:00]} 51. a7 {[%clk 0:00:12]} 1-0


[Site "https://www.chess.com"]

[Event "Titled Tuesday Blitz October 31 Early 2023"]
[White "Viskelis, Darius"]
[Black "IsaqueGoncalvesSanto"]
[WhiteFideId "12800830"]
[WhiteElo "2302"]
[BlackElo "1815"]
[Result "1-0"]
[Round "9"]
[TimeControl "180+1"]
[Date "2023.10.31"]
[WhiteClock "0:01:28"]
[BlackClock "0:00:00"]
[Board "132"]

1. e4 {[%clk 0:03:00]}  e6 {[%clk 0:02:57]} 2. d4 {[%clk 0:03:00]}  d5 {[%clk 0:02:56]} 3. Bd3 {[%clk 0:02:58]}  b6 {[%clk 0:02:43]} 4. exd5 {[%clk 0:02:56]}  exd5 {[%clk 0:02:42]} 5. Nf3 {[%clk 0:02:55]}  Bd6 {[%clk 0:02:35]} 6. O-O {[%clk 0:02:54]}  Ne7 {[%clk 0:02:35]} 7. Ne5 {[%clk 0:02:53]}  Bf5 {[%clk 0:02:27]} 8. Qh5 {[%clk 0:02:43]}  Bg6 {[%clk 0:02:25]} 9. Bxg6 {[%clk 0:02:41]}  Nxg6 {[%clk 0:02:23]} 10. Nxg6 {[%clk 0:02:41]}  fxg6 {[%clk 0:02:23]} 11. Qf3 {[%clk 0:02:36]}  Be7 {[%clk 0:02:14]} 12. Nc3 {[%clk 0:02:31]}  c6 {[%clk 0:02:03]} 13. Re1 {[%clk 0:02:31]}  Rf8 {[%clk 0:01:59]} 14. Qh3 {[%clk 0:02:26]}  h6 {[%clk 0:00:52]} 15. Qe6 {[%clk 0:02:24]}  Rf6 {[%clk 0:00:42]} 16. Qg8+ {[%clk 0:02:23]}  Kd7 {[%clk 0:00:41]} 17. Qxg7 {[%clk 0:02:22]}  Qf8 {[%clk 0:00:13]} 18. Bxh6 {[%clk 0:02:16]}  Qf7 {[%clk 0:00:12]} 19. Rxe7+ {[%clk 0:02:11]}  Qxe7 {[%clk 0:00:11]} 20. Qxe7+ {[%clk 0:02:09]}  Kxe7 {[%clk 0:00:10]} 21. Bg5 {[%clk 0:02:09]}  Nd7 {[%clk 0:00:10]} 22. Re1+ {[%clk 0:02:04]}  Kf7 {[%clk 0:00:10]} 23. Bxf6 {[%clk 0:02:04]}  Nxf6 {[%clk 0:00:10]} 24. f3 {[%clk 0:02:03]}  Rh8 {[%clk 0:00:09]} 25. Ne2 {[%clk 0:02:02]}  Re8 {[%clk 0:00:08]} 26. Kf2 {[%clk 0:02:01]}  Nh5 {[%clk 0:00:08]} 27. Ng3 {[%clk 0:01:57]}  Rxe1 {[%clk 0:00:04]} 28. Kxe1 {[%clk 0:01:56]}  Nf4 {[%clk 0:00:04]} 29. Kf2 {[%clk 0:01:56]}  Ne6 {[%clk 0:00:03]} 30. Ne2 {[%clk 0:01:55]}  c5 {[%clk 0:00:03]} 31. c3 {[%clk 0:01:55]}  Kf6 {[%clk 0:00:03]} 32. g4 {[%clk 0:01:52]}  a5 {[%clk 0:00:03]} 33. f4 {[%clk 0:01:50]}  a4 {[%clk 0:00:03]} 34. Kf3 {[%clk 0:01:46]}  c4 {[%clk 0:00:03]} 35. h4 {[%clk 0:01:42]}  Nc7 {[%clk 0:00:02]} 36. a3 {[%clk 0:01:36]}  Na6 {[%clk 0:00:01]} 37. g5+ {[%clk 0:01:33]}  Kg7 {[%clk 0:00:01]} 38. Kg4 {[%clk 0:01:32]}  Nc7 {[%clk 0:00:01]} 39. f5 {[%clk 0:01:31]}  b5 {[%clk 0:00:00]} 40. fxg6 {[%clk 0:01:28]} 1-0


[Site "https://www.chess.com"]

[Event "Titled Tuesday Blitz October 31 Early 2023"]
[White "Gyulamiryan-koryun"]
[Black "Piesik, Piotr"]
[BlackFideId "1136194"]
[WhiteElo "1909"]
[BlackElo "2651"]
[Result "0-1"]
[Round "9"]
[TimeControl "180+1"]
[Date "2023.10.31"]
[WhiteClock "0:00:04"]
[BlackClock "0:01:38"]
[Board "141"]

1. Nf3 {[%clk 0:02:59]}  g6 {[%clk 0:03:00]} 2. g3 {[%clk 0:02:59]}  Bg7 {[%clk 0:03:01]} 3. Bg2 {[%clk 0:02:59]}  d5 {[%clk 0:03:01]} 4. d3 {[%clk 0:02:59]}  Nf6 {[%clk 0:03:02]} 5. Nbd2 {[%clk 0:03:00]}  O-O {[%clk 0:03:02]} 6. O-O {[%clk 0:03:00]}  Nbd7 {[%clk 0:03:02]} 7. c4 {[%clk 0:03:00]}  c6 {[%clk 0:03:02]} 8. Rb1 {[%clk 0:02:57]}  e5 {[%clk 0:03:00]} 9. e4 {[%clk 0:02:54]}  dxe4 {[%clk 0:02:59]} 10. dxe4 {[%clk 0:02:55]}  a5 {[%clk 0:02:57]} 11. b3 {[%clk 0:02:54]}  Qe7 {[%clk 0:02:58]} 12. Bb2 {[%clk 0:02:52]}  Ne8 {[%clk 0:02:51]} 13. Qc1 {[%clk 0:02:42]}  Nc5 {[%clk 0:02:47]} 14. Ne1 {[%clk 0:02:28]}  Nc7 {[%clk 0:02:45]} 15. f4 {[%clk 0:02:15]}  Rd8 {[%clk 0:02:31]} 16. fxe5 {[%clk 0:01:58]}  Bh6 {[%clk 0:02:23]} 17. Qc2 {[%clk 0:01:51]}  Rxd2 {[%clk 0:02:22]} 18. Qc3 {[%clk 0:01:42]}  N7e6 {[%clk 0:02:14]} 19. Nf3 {[%clk 0:01:33]}  Rd3 {[%clk 0:02:12]} 20. Qc2 {[%clk 0:01:27]}  Ng5 {[%clk 0:02:03]} 21. e6 {[%clk 0:01:17]}  Nxf3+ {[%clk 0:02:01]} 22. Bxf3 {[%clk 0:01:06]}  Bxe6 {[%clk 0:02:00]} 23. Ba3 {[%clk 0:00:58]}  Rad8 {[%clk 0:01:57]} 24. Rbd1 {[%clk 0:00:49]}  Rxd1 {[%clk 0:01:49]} 25. Rxd1 {[%clk 0:00:50]}  Rxd1+ {[%clk 0:01:49]} 26. Qxd1 {[%clk 0:00:48]}  Be3+ {[%clk 0:01:46]} 27. Kg2 {[%clk 0:00:46]}  Qd7 {[%clk 0:01:46]} 28. Bxc5 {[%clk 0:00:20]}  Qxd1 {[%clk 0:01:45]} 29. Bxd1 {[%clk 0:00:21]}  Bxc5 {[%clk 0:01:45]} 30. Kf3 {[%clk 0:00:18]}  Kg7 {[%clk 0:01:44]} 31. g4 {[%clk 0:00:17]}  Kf6 {[%clk 0:01:44]} 32. h4 {[%clk 0:00:15]}  Ke5 {[%clk 0:01:44]} 33. Bc2 {[%clk 0:00:10]}  Kd4 {[%clk 0:01:44]} 34. h5 {[%clk 0:00:08]}  Kc3 {[%clk 0:01:41]} 35. Bb1 {[%clk 0:00:07]}  Kb2 {[%clk 0:01:41]} 36. Bd3 {[%clk 0:00:07]}  Kxa2 {[%clk 0:01:41]} 37. hxg6 {[%clk 0:00:06]}  hxg6 {[%clk 0:01:41]} 38. Kf4 {[%clk 0:00:06]}  Kxb3 {[%clk 0:01:40]} 39. g5 {[%clk 0:00:04]}  a4 {[%clk 0:01:40]} 40. Ke5 {[%clk 0:00:04]}  a3 {[%clk 0:01:40]} 41. Kf6 {[%clk 0:00:02]}  a2 {[%clk 0:01:41]} 42. e5 {[%clk 0:00:03]}  a1=Q {[%clk 0:01:40]} 43. Bxg6 {[%clk 0:00:03]}  fxg6 {[%clk 0:01:40]} 44. Kxg6 {[%clk 0:00:04]}  Qxe5 {[%clk 0:01:39]} 45. Kh7 {[%clk 0:00:04]}  Bf5+ {[%clk 0:01:38]} 46. g6 {[%clk 0:00:05]}  Qe7+ {[%clk 0:01:38]} 47. Kh6 {[%clk 0:00:05]}  Be3+ {[%clk 0:01:38]} 48. Kh5 {[%clk 0:00:04]}  Qg5# {[%clk 0:01:38]} 0-1


[Site "https://www.chess.com"]

[Event "Titled Tuesday Blitz October 31 Early 2023"]
[White "Pranav, V"]
[Black "So, Wesley"]
[WhiteFideId "25060783"]
[BlackFideId "5202213"]
[WhiteElo "3043"]
[BlackElo "3119"]
[Result "1-0"]
[Round "10"]
[TimeControl "180+1"]
[Date "2023.10.31"]
[WhiteClock "0:00:05"]
[BlackClock "0:00:17"]
[Board "1"]

1. e4 {[%clk 0:03:00]}  e5 {[%clk 0:02:59]} 2. Nf3 {[%clk 0:02:59]}  Nc6 {[%clk 0:02:59]} 3. Bb5 {[%clk 0:02:58]}  Nf6 {[%clk 0:02:59]} 4. d3 {[%clk 0:02:57]}  Ne7 {[%clk 0:02:57]} 5. O-O {[%clk 0:02:57]}  c6 {[%clk 0:02:54]} 6. Ba4 {[%clk 0:02:56]}  Ng6 {[%clk 0:02:52]} 7. Re1 {[%clk 0:02:56]}  Bb4 {[%clk 0:02:51]} 8. c3 {[%clk 0:02:55]}  Ba5 {[%clk 0:02:51]} 9. d4 {[%clk 0:02:54]}  d6 {[%clk 0:02:51]} 10. Nbd2 {[%clk 0:02:54]}  O-O {[%clk 0:02:50]} 11. h3 {[%clk 0:02:45]}  Re8 {[%clk 0:02:44]} 12. Bc2 {[%clk 0:02:44]}  h6 {[%clk 0:02:27]} 13. a3 {[%clk 0:02:40]}  Bc7 {[%clk 0:02:25]} 14. Nf1 {[%clk 0:02:37]}  d5 {[%clk 0:02:23]} 15. Nxe5 {[%clk 0:02:28]}  Nxe5 {[%clk 0:02:22]} 16. dxe5 {[%clk 0:02:29]}  Nxe4 {[%clk 0:02:11]} 17. f3 {[%clk 0:02:23]}  Nc5 {[%clk 0:01:53]} 18. f4 {[%clk 0:02:22]}  Bb6 {[%clk 0:01:39]} 19. Be3 {[%clk 0:02:20]}  f6 {[%clk 0:01:34]} 20. Qh5 {[%clk 0:01:53]}  fxe5 {[%clk 0:01:27]} 21. fxe5 {[%clk 0:01:54]}  Ne4 {[%clk 0:01:17]} 22. Bxe4 {[%clk 0:01:25]}  dxe4 {[%clk 0:01:18]} 23. Rad1 {[%clk 0:01:25]}  Qe7 {[%clk 0:01:18]} 24. Bxb6 {[%clk 0:01:19]}  axb6 {[%clk 0:01:18]} 25. Rxe4 {[%clk 0:01:19]}  Be6 {[%clk 0:01:18]} 26. Ne3 {[%clk 0:01:04]}  Rad8 {[%clk 0:01:10]} 27. Rxd8 {[%clk 0:01:01]}  Rxd8 {[%clk 0:01:11]} 28. Rd4 {[%clk 0:00:59]}  Re8 {[%clk 0:01:05]} 29. Re4 {[%clk 0:00:47]}  Rd8 {[%clk 0:01:01]} 30. Kh2 {[%clk 0:00:44]}  Rd2 {[%clk 0:00:56]} 31. Qg6 {[%clk 0:00:35]}  Rxb2 {[%clk 0:00:47]} 32. Ra4 {[%clk 0:00:35]}  Bc8 {[%clk 0:00:34]} 33. Ng4 {[%clk 0:00:34]}  Qe6 {[%clk 0:00:25]} 34. Nf6+ {[%clk 0:00:33]}  Kf8 {[%clk 0:00:26]} 35. Nh7+ {[%clk 0:00:17]}  Kg8 {[%clk 0:00:23]} 36. Nf6+ {[%clk 0:00:17]}  Kf8 {[%clk 0:00:24]} 37. Rf4 {[%clk 0:00:05]}  Re2 {[%clk 0:00:15]} 38. Nh7+ {[%clk 0:00:04]}  Ke7 {[%clk 0:00:15]} 39. Qxg7+ {[%clk 0:00:05]}  Kd8 {[%clk 0:00:16]} 40. Rf8+ {[%clk 0:00:05]}  Qe8 {[%clk 0:00:17]} 41. Rxe8+ {[%clk 0:00:05]}  Kxe8 {[%clk 0:00:17]} 42. Qf8+ {[%clk 0:00:05]} 1-0


[Site "https://www.chess.com"]

[Event "Titled Tuesday Blitz October 31 Early 2023"]
[White "Nakamura, Hikaru"]
[Black "Mitrabha, Guha"]
[WhiteFideId "2016192"]
[BlackFideId "5057000"]
[WhiteElo "3230"]
[BlackElo "2855"]
[Result "1-0"]
[Round "10"]
[TimeControl "180+1"]
[Date "2023.10.31"]
[WhiteClock "0:01:21"]
[BlackClock "0:01:26"]
[Board "3"]

1. Nf3 {[%clk 0:03:00]}  Nf6 {[%clk 0:02:59]} 2. d4 {[%clk 0:02:55]}  e6 {[%clk 0:02:58]} 3. c4 {[%clk 0:02:53]}  c5 {[%clk 0:02:56]} 4. d5 {[%clk 0:02:50]}  d6 {[%clk 0:02:56]} 5. Nc3 {[%clk 0:02:48]}  a6 {[%clk 0:02:56]} 6. a4 {[%clk 0:02:46]}  Qe7 {[%clk 0:02:56]} 7. Nd2 {[%clk 0:02:42]}  g6 {[%clk 0:02:49]} 8. g3 {[%clk 0:02:39]}  exd5 {[%clk 0:02:48]} 9. cxd5 {[%clk 0:02:39]}  Bg7 {[%clk 0:02:47]} 10. Bg2 {[%clk 0:02:39]}  O-O {[%clk 0:02:46]} 11. Nc4 {[%clk 0:02:38]}  Nbd7 {[%clk 0:02:47]} 12. Bf4 {[%clk 0:02:35]}  Ne8 {[%clk 0:02:47]} 13. h4 {[%clk 0:02:29]}  h6 {[%clk 0:02:38]} 14. Qd2 {[%clk 0:02:27]}  h5 {[%clk 0:02:30]} 15. Bg5 {[%clk 0:02:12]}  Nef6 {[%clk 0:02:22]} 16. Ne4 {[%clk 0:02:06]}  Nxe4 {[%clk 0:02:08]} 17. Bxe7 {[%clk 0:02:05]}  Nxd2 {[%clk 0:02:09]} 18. Kxd2 {[%clk 0:02:06]}  Re8 {[%clk 0:01:48]} 19. Bxd6 {[%clk 0:02:06]}  b6 {[%clk 0:01:48]} 20. Bc7 {[%clk 0:01:33]}  Ra7 {[%clk 0:01:42]} 21. Bxb6 {[%clk 0:01:33]}  Nxb6 {[%clk 0:01:41]} 22. Nxb6 {[%clk 0:01:34]}  Bxb2 {[%clk 0:01:37]} 23. Rab1 {[%clk 0:01:23]}  Ba3 {[%clk 0:01:36]} 24. Nxc8 {[%clk 0:01:23]}  Rxc8 {[%clk 0:01:36]} 25. Kc3 {[%clk 0:01:23]}  Bb4+ {[%clk 0:01:35]} 26. Kc4 {[%clk 0:01:23]}  Re7 {[%clk 0:01:30]} 27. e3 {[%clk 0:01:23]}  f5 {[%clk 0:01:27]} 28. d6 {[%clk 0:01:20]}  Rd7 {[%clk 0:01:27]} 29. Bd5+ {[%clk 0:01:20]}  Kg7 {[%clk 0:01:25]} 30. Be6 {[%clk 0:01:20]}  Rcd8 {[%clk 0:01:26]} 31. Bxd7 {[%clk 0:01:20]}  Rxd7 {[%clk 0:01:26]} 32. Rhd1 {[%clk 0:01:21]} 1-0


[Site "https://www.chess.com"]

[Event "Titled Tuesday Blitz October 31 Early 2023"]
[White "Pranav Anand"]
[Black "Bluebaum, Matthias"]
[WhiteFideId "46626786"]
[BlackFideId "24651516"]
[WhiteElo "2918"]
[BlackElo "3064"]
[Result "1-0"]
[Round "10"]
[TimeControl "180+1"]
[Date "2023.10.31"]
[WhiteClock "0:00:10"]
[BlackClock "0:00:10"]
[Board "6"]

1. d4 {[%clk 0:03:00]}  d5 {[%clk 0:02:59]} 2. Nf3 {[%clk 0:03:00]}  e6 {[%clk 0:03:00]} 3. g3 {[%clk 0:02:59]}  Nf6 {[%clk 0:03:00]} 4. Bg2 {[%clk 0:03:00]}  Bd6 {[%clk 0:03:01]} 5. O-O {[%clk 0:02:59]}  O-O {[%clk 0:03:01]} 6. Bg5 {[%clk 0:03:00]}  h6 {[%clk 0:02:57]} 7. Bxf6 {[%clk 0:02:59]}  Qxf6 {[%clk 0:02:57]} 8. Nbd2 {[%clk 0:03:00]}  c5 {[%clk 0:02:55]} 9. c3 {[%clk 0:03:00]}  Nc6 {[%clk 0:02:54]} 10. dxc5 {[%clk 0:02:59]}  Bxc5 {[%clk 0:02:55]} 11. e4 {[%clk 0:02:59]}  Rd8 {[%clk 0:02:50]} 12. Qe2 {[%clk 0:02:59]}  a5 {[%clk 0:02:50]} 13. Rfd1 {[%clk 0:02:54]}  a4 {[%clk 0:02:49]} 14. a3 {[%clk 0:02:51]}  b6 {[%clk 0:02:49]} 15. e5 {[%clk 0:02:39]}  Qe7 {[%clk 0:02:47]} 16. Re1 {[%clk 0:02:40]}  Ba6 {[%clk 0:02:47]} 17. Qd1 {[%clk 0:02:40]}  Bb5 {[%clk 0:02:43]} 18. Bf1 {[%clk 0:02:38]}  Bxf1 {[%clk 0:02:43]} 19. Nxf1 {[%clk 0:02:39]}  d4 {[%clk 0:02:43]} 20. c4 {[%clk 0:02:38]}  d3 {[%clk 0:02:38]} 21. Re4 {[%clk 0:02:38]}  Qb7 {[%clk 0:02:36]} 22. N1d2 {[%clk 0:02:37]}  Ne7 {[%clk 0:02:30]} 23. Qf1 {[%clk 0:02:34]}  b5 {[%clk 0:02:23]} 24. Rc1 {[%clk 0:02:26]}  b4 {[%clk 0:02:23]} 25. axb4 {[%clk 0:02:24]}  Qxb4 {[%clk 0:02:22]} 26. Rb1 {[%clk 0:02:24]}  Rab8 {[%clk 0:02:19]} 27. Rg4 {[%clk 0:02:21]}  Nf5 {[%clk 0:02:14]} 28. Ne4 {[%clk 0:02:04]}  Be7 {[%clk 0:01:48]} 29. Nfd2 {[%clk 0:02:01]}  Qb7 {[%clk 0:01:35]} 30. Qh3 {[%clk 0:01:42]}  Bb4 {[%clk 0:01:31]} 31. Rd1 {[%clk 0:01:21]}  Bxd2 {[%clk 0:01:26]} 32. Rxd2 {[%clk 0:01:22]}  Kh8 {[%clk 0:01:22]} 33. Qf1 {[%clk 0:01:10]}  Qb4 {[%clk 0:01:04]} 34. c5 {[%clk 0:01:05]}  Rd4 {[%clk 0:01:03]} 35. Qe1 {[%clk 0:00:55]}  Rc4 {[%clk 0:00:56]} 36. Kf1 {[%clk 0:00:42]}  Rd8 {[%clk 0:00:49]} 37. Rf4 {[%clk 0:00:36]}  Rc2 {[%clk 0:00:47]} 38. Qd1 {[%clk 0:00:17]}  Qc4 {[%clk 0:00:23]} 39. Nd6 {[%clk 0:00:16]}  Qxc5 {[%clk 0:00:20]} 40. Nxf7+ {[%clk 0:00:13]}  Kh7 {[%clk 0:00:20]} 41. Nxd8 {[%clk 0:00:14]}  Rc1 {[%clk 0:00:20]} 42. Rxd3 {[%clk 0:00:10]}  Rxd1+ {[%clk 0:00:21]} 43. Rxd1 {[%clk 0:00:11]}  Qxe5 {[%clk 0:00:20]} 44. Kg1 {[%clk 0:00:06]}  Qb5 {[%clk 0:00:16]} 45. Nxe6 {[%clk 0:00:04]}  Qxb2 {[%clk 0:00:16]} 46. Rxf5 {[%clk 0:00:03]}  Qc2 {[%clk 0:00:15]} 47. Rfd5 {[%clk 0:00:04]}  a3 {[%clk 0:00:14]} 48. Nf8+ {[%clk 0:00:04]}  Kg8 {[%clk 0:00:12]} 49. Rd8 {[%clk 0:00:05]}  a2 {[%clk 0:00:09]} 50. Ng6+ {[%clk 0:00:06]}  Kf7 {[%clk 0:00:09]} 51. Ne5+ {[%clk 0:00:06]}  Kf6 {[%clk 0:00:07]} 52. Ng4+ {[%clk 0:00:06]}  Kg5 {[%clk 0:00:06]} 53. Ne3 {[%clk 0:00:05]}  Qa4 {[%clk 0:00:04]} 54. Ra1 {[%clk 0:00:04]}  h5 {[%clk 0:00:02]} 55. h4+ {[%clk 0:00:03]}  Kh6 {[%clk 0:00:03]} 56. Rd2 {[%clk 0:00:04]}  g5 {[%clk 0:00:02]} 57. Rdxa2 {[%clk 0:00:04]}  Qb5 {[%clk 0:00:02]} 58. Ra6+ {[%clk 0:00:05]}  Kg7 {[%clk 0:00:02]} 59. R6a5 {[%clk 0:00:06]}  Qb2 {[%clk 0:00:02]} 60. Rxg5+ {[%clk 0:00:06]}  Kf6 {[%clk 0:00:03]} 61. Ra6+ {[%clk 0:00:06]}  Ke7 {[%clk 0:00:04]} 62. Ra7+ {[%clk 0:00:05]}  Kf6 {[%clk 0:00:04]} 63. Ra6+ {[%clk 0:00:05]}  Ke7 {[%clk 0:00:04]} 64. Rd5 {[%clk 0:00:05]}  Qb1+ {[%clk 0:00:04]} 65. Kg2 {[%clk 0:00:06]}  Qb7 {[%clk 0:00:05]} 66. Rh6 {[%clk 0:00:05]}  Kf8 {[%clk 0:00:05]} 67. Rf6+ {[%clk 0:00:04]}  Kg7 {[%clk 0:00:06]} 68. Rf5 {[%clk 0:00:05]}  Qa8 {[%clk 0:00:07]} 69. Rg5+ {[%clk 0:00:06]}  Kh6 {[%clk 0:00:07]} 70. Rxh5+ {[%clk 0:00:07]}  Kg6 {[%clk 0:00:08]} 71. Rf5 {[%clk 0:00:07]}  Qb7 {[%clk 0:00:08]} 72. h5+ {[%clk 0:00:08]}  Kh6 {[%clk 0:00:08]} 73. Rf6+ {[%clk 0:00:08]}  Kg7 {[%clk 0:00:09]} 74. Rg6+ {[%clk 0:00:08]}  Kh7 {[%clk 0:00:10]} 75. Kh2 {[%clk 0:00:09]}  Qf7 {[%clk 0:00:10]} 76. Kg1 {[%clk 0:00:08]}  Qa7 {[%clk 0:00:09]} 77. Rgd6 {[%clk 0:00:07]}  Qa1+ {[%clk 0:00:09]} 78. Kg2 {[%clk 0:00:07]}  Qa8 {[%clk 0:00:10]} 79. Rd7+ {[%clk 0:00:07]}  Kg8 {[%clk 0:00:07]} 80. Rd8+ {[%clk 0:00:08]}  Kg7 {[%clk 0:00:07]} 81. Rxa8 {[%clk 0:00:08]}  Kh6 {[%clk 0:00:08]} 82. Ra6+ {[%clk 0:00:08]}  Kg7 {[%clk 0:00:09]} 83. Rd7+ {[%clk 0:00:09]}  Kf8 {[%clk 0:00:10]} 84. Ra8# {[%clk 0:00:10]} 1-0


[Site "https://www.chess.com"]

[Event "Titled Tuesday Blitz October 31 Early 2023"]
[White "Daneshvar, Bardiya"]
[Black "Vakhlamov, Igor L."]
[WhiteFideId "12576468"]
[BlackFideId "24126748"]
[WhiteElo "2956"]
[BlackElo "2832"]
[Result "1-0"]
[Round "10"]
[TimeControl "180+1"]
[Date "2023.10.31"]
[WhiteClock "0:00:20"]
[BlackClock "0:00:00"]
[Board "10"]

1. Nf3 {[%clk 0:03:00]}  d5 {[%clk 0:02:59]} 2. e3 {[%clk 0:03:00]}  Nf6 {[%clk 0:02:59]} 3. c4 {[%clk 0:03:00]}  e6 {[%clk 0:02:58]} 4. Nc3 {[%clk 0:03:01]}  c5 {[%clk 0:02:58]} 5. cxd5 {[%clk 0:03:01]}  exd5 {[%clk 0:02:59]} 6. d4 {[%clk 0:03:01]}  Nc6 {[%clk 0:02:58]} 7. Bb5 {[%clk 0:03:01]}  cxd4 {[%clk 0:02:58]} 8. Nxd4 {[%clk 0:03:00]}  Bd7 {[%clk 0:02:59]} 9. O-O {[%clk 0:03:00]}  Bd6 {[%clk 0:02:59]} 10. Nf3 {[%clk 0:03:01]}  Be6 {[%clk 0:02:58]} 11. b3 {[%clk 0:03:02]}  O-O {[%clk 0:02:57]} 12. Bb2 {[%clk 0:03:02]}  Rc8 {[%clk 0:02:57]} 13. Rc1 {[%clk 0:03:02]}  Qe7 {[%clk 0:02:57]} 14. h3 {[%clk 0:03:02]}  Rfd8 {[%clk 0:02:55]} 15. Ne2 {[%clk 0:03:02]}  Ne4 {[%clk 0:02:53]} 16. Nf4 {[%clk 0:03:02]}  Ba3 {[%clk 0:02:38]} 17. Qe2 {[%clk 0:02:58]}  h6 {[%clk 0:02:32]} 18. Rfd1 {[%clk 0:02:42]}  Rc7 {[%clk 0:02:16]} 19. Bxc6 {[%clk 0:02:19]}  Rxc6 {[%clk 0:01:23]} 20. Bxa3 {[%clk 0:02:15]}  Qxa3 {[%clk 0:01:22]} 21. Rxc6 {[%clk 0:02:16]}  bxc6 {[%clk 0:01:22]} 22. Qc2 {[%clk 0:02:16]}  c5 {[%clk 0:01:09]} 23. Ne5 {[%clk 0:02:09]}  Nf6 {[%clk 0:01:06]} 24. Nc6 {[%clk 0:01:34]}  Rd6 {[%clk 0:00:54]} 25. Ne7+ {[%clk 0:01:32]}  Kf8 {[%clk 0:00:51]} 26. Nf5 {[%clk 0:01:26]}  Bxf5 {[%clk 0:00:32]} 27. Qxf5 {[%clk 0:01:27]}  Qxa2 {[%clk 0:00:33]} 28. Qc8+ {[%clk 0:01:24]}  Ke7 {[%clk 0:00:33]} 29. Qxc5 {[%clk 0:01:19]}  Qxb3 {[%clk 0:00:31]} 30. Ra1 {[%clk 0:01:10]}  Qb6 {[%clk 0:00:08]} 31. Rxa7+ {[%clk 0:01:06]}  Ke8 {[%clk 0:00:07]} 32. Qa3 {[%clk 0:01:01]}  d4 {[%clk 0:00:04]} 33. Qa2 {[%clk 0:00:52]}  Rd7 {[%clk 0:00:02]} 34. Ra6 {[%clk 0:00:50]}  Qc5 {[%clk 0:00:01]} 35. Nd3 {[%clk 0:00:41]}  Qd5 {[%clk 0:00:01]} 36. Ra8+ {[%clk 0:00:38]}  Ke7 {[%clk 0:00:02]} 37. Qa3+ {[%clk 0:00:38]}  Qd6 {[%clk 0:00:02]} 38. Nc5 {[%clk 0:00:33]}  d3 {[%clk 0:00:02]} 39. Nxd7 {[%clk 0:00:29]}  d2 {[%clk 0:00:02]} 40. Qxd6+ {[%clk 0:00:27]}  Kxd6 {[%clk 0:00:02]} 41. Ra1 {[%clk 0:00:27]}  Ne4 {[%clk 0:00:03]} 42. Rd1 {[%clk 0:00:27]}  Kxd7 {[%clk 0:00:04]} 43. f3 {[%clk 0:00:27]}  Ng3 {[%clk 0:00:04]} 44. Rxd2+ {[%clk 0:00:27]}  Ke6 {[%clk 0:00:05]} 45. Kf2 {[%clk 0:00:28]}  Nf5 {[%clk 0:00:05]} 46. g4 {[%clk 0:00:28]}  Ne7 {[%clk 0:00:05]} 47. e4 {[%clk 0:00:28]}  Ng6 {[%clk 0:00:05]} 48. Kg3 {[%clk 0:00:28]}  Ne5 {[%clk 0:00:05]} 49. f4 {[%clk 0:00:29]}  Nc4 {[%clk 0:00:05]} 50. Rd4 {[%clk 0:00:28]}  Nd6 {[%clk 0:00:05]} 51. Kf3 {[%clk 0:00:27]}  f6 {[%clk 0:00:05]} 52. Ra4 {[%clk 0:00:27]}  Nb5 {[%clk 0:00:05]} 53. Ra6+ {[%clk 0:00:27]}  Kf7 {[%clk 0:00:05]} 54. Ke3 {[%clk 0:00:28]}  g5 {[%clk 0:00:02]} 55. fxg5 {[%clk 0:00:28]}  hxg5 {[%clk 0:00:03]} 56. Rb6 {[%clk 0:00:28]}  Nc3 {[%clk 0:00:03]} 57. Kd3 {[%clk 0:00:28]}  Nd1 {[%clk 0:00:03]} 58. Ke2 {[%clk 0:00:22]}  Nc3+ {[%clk 0:00:03]} 59. Kf3 {[%clk 0:00:20]}  Nd1 {[%clk 0:00:04]} 60. Rb3 {[%clk 0:00:19]}  Ke6 {[%clk 0:00:03]} 61. Ke2 {[%clk 0:00:20]}  Nb2 {[%clk 0:00:00]} 62. Rxb2 {[%clk 0:00:20]} 1-0


[Site "https://www.chess.com"]